bitfinex/quotes_ETHUSD_20241119
["timestamp","ask_amount","ask_price","bid_price","bid_amount"]
[1732006176253,0.7898,3117.4,3116.0,0.8166355]
[1732006176254,3.20857,3116.7,3116.2,3.20901]
[1732006176552,3.20857,3116.7,3116.1,0.7814]
[1732006176553,3.44730951,3116.6,3116.1,0.7814]
[1732006176845,0.23864951,3116.5,3116.1,0.7814]
[1732006177147,0.23868523,3116.4,3116.1,0.7814]
[1732006177303,3.20853,3116.7,3116.1,0.7814]
[1732006177503,0.23873711,3116.6,3116.1,3.7814]
[1732006177706,0.23873711,3116.5,3116.1,3.7814]
[1732006177952,3.20901,3116.3,3115.7,6.20948]
[1732006178129,0.23873711,3116.2,3115.8,3.20941]
[1732006178444,3.20884,3116.4,3115.9,4.01633]
[1732006178635,0.23874585,3116.3,3115.7,3.20953]
[1732006178831,0.8239,3116.8,3115.7,3.20953]
[1732006178832,3.44778585,3116.2,3115.7,3.20953]
[1732006179152,3.20889,3116.4,3115.7,3.932614]
[1732006179465,0.23868887,3116.3,3115.9,3.20927]
[1732006179770,0.7862,3116.5,3116.0,0.38760416]
[1732006180070,0.23874331,3116.4,3116.1,3.20913]
[1732006180362,0.23874331,3116.4,3116.2,3.20903]
[1732006180547,0.7862,3116.7,3116.3,3.20889]
[1732006180865,0.23875963,3116.6,3116.3,3.20889]
[1732006181023,0.23875963,3116.6,3116.2,0.35347982]
[1732006181224,0.23875963,3116.6,3116.2,3.56247982]
[1732006181664,0.23875963,3116.6,3116.5,3.20872]
[1732006181961,0.7862,3117.3,3116.7,3.20847]
[1732006182169,0.23880336,3117.2,3116.7,3.20847]
[1732006182465,0.23881918,3117.1,3116.9,3.20831]
[1732006182772,3.20772,3117.5,3116.9,3.849988]
[1732006183071,3.44670981,3117.4,3116.9,3.20821]
[1732006183238,0.23882981,3117.3,3117.0,3.20821]
[1732006183443,0.23882981,3117.2,3117.0,3.20821]
[1732006183628,3.20775,3117.5,3117.0,3.20821]
[1732006183629,3.99004,3117.6,3117.0,3.20821]
[1732006183830,0.23884342,3117.5,3117.0,4.231622]
[1732006184032,0.23884342,3117.4,3117.0,4.231622]
[1732006184220,3.99004,3117.6,3117.2,3.208]
[1732006184221,0.23884342,3117.3,3117.2,3.208]
[1732006184422,0.23884342,3117.3,3117.0,4.231562]
[1732006184730,3.20751,3117.7,3117.2,3.208]
[1732006184925,0.23886663,3117.6,3117.2,3.208]
[1732006185154,0.23886663,3117.5,3117.2,3.208]
[1732006185354,0.53750025,3117.4,3117.2,3.208]
[1732006185694,0.53750025,3117.4,3116.8,7.02585]
[1732006185695,0.53750025,3117.3,3116.8,7.02585]
[1732006185825,3.20786,3117.4,3116.8,7.02585]
[1732006185826,0.53750025,3117.2,3116.8,7.02585]
[1732006186021,0.53752755,3117.1,3116.8,7.02585]
[1732006186226,0.7858,3117.8,3116.8,8.049292]
[1732006186227,0.29863362,3117.0,3116.8,8.049292]
[1732006186449,0.29863362,3116.9,3116.8,7.02585]
[1732006186725,3.20791,3117.3,3116.8,7.02585]
[1732006186943,0.53752999,3117.2,3116.8,7.02585]
[1732006187147,0.53752999,3117.1,3116.8,6.20835]
[1732006187368,0.29862734,3117.0,3116.8,6.20835]
[1732006187583,0.29862734,3116.9,3116.8,7.227242]
[1732006187785,0.29862734,3116.9,3116.8,6.20835]
[1732006188287,0.29864396,3116.9,3116.8,6.20835]
[1732006189164,3.20791,3117.3,3116.8,3.0]
[1732006189357,0.53757499,3117.2,3116.8,3.0]
[1732006189563,0.53757499,3117.1,3116.8,3.0]
[1732006189795,0.53757499,3117.0,3116.8,3.698044]
[1732006189955,0.29865279,3116.9,3116.8,6.906454]
[1732006190153,0.875,3117.6,3117.0,3.20821]
[1732006190379,0.5376217,3117.5,3117.0,3.20815]
[1732006190558,0.5376217,3117.4,3117.2,3.20794]
[1732006190872,0.875,3117.6,3117.3,0.38782239]
[1732006191063,0.53762944,3117.5,3117.3,0.38782239]
[1732006191246,0.29868302,3117.4,3117.2,6.41588]
[1732006191441,0.29868302,3117.3,3117.2,3.20794]
[1732006192186,0.29868302,3117.3,3117.1,3.821]
[1732006192391,0.875,3117.6,3117.2,3.208]
[1732006192547,0.53767109,3117.5,3117.3,3.20788]
[1732006192750,0.53767109,3117.4,3117.3,3.20788]
[1732006193393,0.238965,3117.4,3117.3,3.20788]
[1732006193549,0.29873916,3117.4,3117.3,3.20788]
[1732006193890,0.53770229,3117.4,3117.3,3.20788]
[1732006194046,0.53770222,3117.4,3117.3,3.20788]
[1732006194877,0.29873722,3117.4,3117.2,3.20792]
[1732006195083,0.875,3117.6,3117.2,3.20792]
[1732006195084,0.53775306,3117.3,3117.2,3.20792]
[1732006195392,0.29873722,3117.3,3117.2,3.20792]
[1732006195587,0.53777738,3117.3,3117.2,3.20792]
[1732006195793,0.29873722,3117.3,3117.2,4.231622]
[1732006195966,0.875,3117.6,3117.4,3.20776]
[1732006196165,0.5378895,3117.5,3117.4,3.20776]
[1732006196579,0.29882758,3117.5,3117.4,3.20776]
[1732006196786,0.29882758,3117.5,3117.4,3.9516962]
[1732006197993,0.875,3117.6,3117.4,7.7038962]
[1732006198198,0.875,3117.6,3117.5,6.20769]
[1732006200632,1.17378208,3117.6,3117.5,3.0]
[1732006200813,1.17378208,3117.6,3117.2,3.20795]
[1732006201111,0.53780714,3117.5,3117.0,3.20818]
[1732006201309,4.52073321,3117.6,3116.9,0.8176]
[1732006201310,0.53780714,3117.4,3117.2,3.20792]
[1732006201643,0.875,3117.6,3117.2,0.7666]
[1732006201824,0.875,3117.6,3117.5,3.20769]
[1732006202028,1.17385721,3117.6,3117.5,3.20769]
[1732006202408,0.875,3117.6,3117.5,3.20769]
[1732006202758,0.875,3117.6,3117.5,6.20769]
[1732006204920,0.875,3117.6,3117.5,6.24971503]
[1732006205129,0.875,3117.6,3117.5,7.9482875]
[1732006205609,0.875,3117.6,3117.5,8.4982875]
[1732006220389,0.875,3117.6,3117.5,8.5082875]
[1732006220591,0.875,3117.6,3117.5,8.8290875]
[1732006221340,0.1419025,3118.4,3117.5,8.8290875]
[1732006221341,0.1419025,3118.4,3118.3,3.20687]
[1732006221504,0.1419025,3118.4,3118.3,6.75687]
[1732006223734,0.1419025,3118.4,3118.3,7.53347]
[1732006223931,0.1419025,3118.4,3118.3,10.4417343]
[1732006224236,0.1419025,3118.4,3118.3,11.79760473]
[1732006227544,0.1419025,3118.4,3118.3,11.80760473]
[1732006229726,1e-08,3118.4,3118.3,11.80760473]
[1732006232804,0.5380771,3119.6,3118.7,0.7575]
[1732006233057,0.29893172,3119.5,3119.4,3.75569]
[1732006233617,0.29893172,3119.5,3119.4,4.451849]
[1732006233851,0.29893172,3119.5,3119.4,3.75569]
[1732006234755,0.02622301,3119.6,3119.5,3.75564]
[1732006234954,0.32511745,3119.6,3119.5,3.75564]
[1732006235114,0.02622301,3119.6,3119.5,3.75564]
[1732006235477,0.02622301,3119.6,3119.5,4.751773]
[1732006235755,0.32508983,3119.6,3119.5,4.751773]
[1732006236339,0.32508983,3119.6,3119.5,3.75564]
[1732006237189,0.02622301,3119.6,3119.5,3.75564]
[1732006237855,1.0980496,3119.6,3119.3,3.0]
[1732006238052,1.0980496,3119.6,3118.9,3.2062]
[1732006238053,0.29882659,3119.5,3119.2,3.20594]
[1732006238254,0.29879937,3119.4,3119.3,3.0]
[1732006238566,0.79922301,3119.6,3119.3,6.20578]
[1732006238567,0.29880472,3119.5,3119.3,6.20578]
[1732006238767,0.79922301,3119.6,3119.3,7.146952]
[1732006239077,0.29881171,3119.5,3119.3,7.146952]
[1732006239386,0.79922301,3119.6,3119.4,0.55]
[1732006240444,0.79922301,3119.6,3119.3,3.55]
[1732006240790,0.29868333,3119.5,3119.3,3.55]
[1732006240939,0.02622301,3119.5,3119.3,7.431354]
[1732006242043,0.02622301,3119.5,3119.4,6.75574]
[1732006244255,0.02622301,3119.5,3119.4,40.75574]
[1732006244653,0.3250417,3119.5,3119.4,40.75574]
[1732006244888,0.02622301,3119.5,3119.4,43.89673947]
[1732006245668,0.32504743,3119.5,3119.4,43.89673947]
[1732006245950,0.02622301,3119.5,3119.4,43.89673947]
[1732006248914,0.32532641,3119.5,3119.4,43.89673947]
[1732006249215,0.32544727,3119.5,3119.4,43.89673947]
[1732006249997,0.02622301,3119.5,3119.4,43.89673947]
[1732006250317,0.32558534,3119.5,3119.4,43.89673947]
[1732006250697,0.3255827,3119.5,3119.4,43.89673947]
[1732006251014,0.02622301,3119.5,3119.4,43.89673947]
[1732006251186,0.02622301,3119.5,3119.4,44.65373947]
[1732006253214,0.32592762,3119.5,3119.4,44.65373947]
[1732006253417,0.32595957,3119.5,3119.4,44.65373947]
[1732006253719,0.02622301,3119.5,3119.4,44.65373947]
[1732006254073,0.02622301,3119.5,3119.4,43.89673947]
[1732006254273,0.32601518,3119.5,3119.4,43.89673947]
[1732006254516,0.32601161,3119.5,3119.4,43.89673947]
[1732006254753,0.02622301,3119.5,3119.4,43.89673947]
[1732006255271,0.32605412,3119.5,3119.4,43.89673947]
[1732006255473,0.32604201,3119.5,3119.4,43.89673947]
[1732006256826,0.32604201,3119.5,3119.4,43.34673947]
[1732006256979,0.32604201,3119.5,3119.4,37.14099947]
[1732006256980,0.56595071,3119.5,3119.4,37.14099947]
[1732006257377,0.32604201,3119.5,3119.4,37.14099947]
[1732006257600,0.56602551,3119.5,3119.4,37.14099947]
[1732006257945,0.56602551,3119.5,3119.4,40.34673947]
[1732006258120,0.56602551,3119.5,3119.4,40.89673947]
[1732006258509,0.56602551,3119.5,3119.4,43.89673947]
[1732006261981,1.36842551,3119.5,3119.4,43.89673947]
[1732006263209,4.57406551,3119.5,3119.4,34.0]
[1732006263527,4.27424651,3119.5,3119.4,34.0]
[1732006263735,1.12857214,3119.5,3119.4,34.0]
[1732006263887,1.36853145,3119.5,3119.4,34.0]
[1732006264580,4.57417145,3119.5,3119.4,34.0]
[1732006266292,1.36853145,3119.5,3119.4,34.0]
[1732006267754,1.36853145,3119.5,3119.4,34.55]
[1732006267955,0.56613145,3119.5,3119.4,40.89673947]
[1732006268595,0.56613145,3119.5,3119.4,43.89673947]
[1732006268596,0.02622301,3119.5,3119.4,43.89673947]
[1732006268950,1.32893407,3119.5,3119.4,37.69099947]
[1732006269184,4.53457407,3119.5,3119.4,34.55]
[1732006269388,1.32893407,3119.5,3119.4,34.55]
[1732006270105,1.32893407,3119.5,3119.4,38.55064]
[1732006270106,0.56593407,3119.5,3119.4,38.55064]
[1732006270285,0.56593407,3119.5,3119.4,44.69163947]
[1732006270286,0.3260696,3119.5,3119.4,44.69163947]
[1732006270476,0.02622301,3119.5,3119.4,44.69163947]
[1732006271060,0.02622301,3119.5,3119.4,43.89673947]
[1732006271260,0.32604077,3119.5,3119.4,43.89673947]
[1732006271489,0.56588672,3119.5,3119.4,40.75574]
[1732006272009,0.56588672,3119.5,3119.4,37.55]
[1732006272174,0.56588672,3119.5,3119.4,34.55]
[1732006273658,0.56588672,3119.5,3119.4,37.55]
[1732006274439,1.02436439,3119.5,3119.4,34.55]
[1732006274743,5.06280439,3119.5,3119.4,34.0]
[1732006277857,5.06232839,3119.5,3119.4,34.0]
[1732006278359,5.04232839,3119.5,3119.4,34.0]
[1732006279121,4.58385072,3119.5,3119.4,34.0]
[1732006282940,4.59385072,3119.5,3119.4,34.0]
[1732006283353,4.58385072,3119.5,3119.4,34.0]
[1732006283723,4.59385072,3119.5,3119.4,34.0]
[1732006284026,4.58385072,3119.5,3119.4,34.0]
[1732006285148,4.35400477,3119.5,3119.4,34.0]
[1732006285370,4.59341452,3119.5,3119.4,34.0]
[1732006286268,5.36330997,3119.5,3119.4,34.0]
[1732006287178,5.37330997,3119.5,3119.4,34.0]
[1732006287686,4.59341452,3119.5,3119.4,34.0]
[1732006288026,4.58341452,3119.5,3119.4,34.0]
[1732006290347,1.37777452,3119.5,3119.4,34.0]
[1732006290681,3.77061452,3119.5,3119.4,34.0]
[1732006291188,0.56497452,3119.5,3119.4,34.0]
[1732006291397,0.56497452,3119.5,3119.4,37.69099947]
[1732006291687,3.77061452,3119.5,3119.4,34.55]
[1732006291988,0.56497452,3119.5,3119.4,34.55]
[1732006292136,4.56061452,3119.5,3119.4,34.0]
[1732006292808,4.57061452,3119.5,3119.4,34.0]
[1732006296266,4.56061452,3119.5,3119.4,34.0]
[1732006296671,4.57061452,3119.5,3119.4,34.0]
[1732006301804,5.42228755,3119.5,3119.4,34.0]
[1732006302026,5.42228755,3119.5,3119.4,32.99767005]
[1732006303068,5.12294579,3119.5,3119.4,32.99767005]
[1732006303273,5.42257572,3119.5,3119.4,32.99767005]
[1732006306415,8.42257572,3119.5,3119.4,32.99767005]
[1732006307391,8.18316597,3119.5,3119.4,32.99767005]
[1732006307607,8.4227407,3119.5,3119.4,32.99767005]
[1732006308008,8.4227407,3119.5,3119.4,24.39835131]
[1732006308679,8.4227407,3119.5,3119.4,16.38400131]
[1732006309474,8.4227407,3119.5,3119.4,15.1117162]
[1732006309673,8.4227407,3119.5,3119.4,10.3031062]
[1732006310424,8.4227407,3119.5,3119.4,7.0973662]
[1732006310425,8.42265157,3119.5,3119.4,7.0973662]
[1732006311218,3.20708,3118.1,3118.0,0.766]
[1732006311418,3.74619553,3118.1,3118.0,0.766]
[1732006311619,0.53911553,3118.1,3118.0,0.766]
[1732006312027,0.53911553,3118.1,3118.0,6.97318]
[1732006312223,0.29962993,3118.1,3118.0,6.97318]
[1732006312394,0.01,3119.0,3118.1,1.3165]
[1732006312726,3.20665,3118.6,3118.1,1.3165]
[1732006312925,3.20679,3118.4,3118.1,1.3165]
[1732006313224,3.74566502,3118.3,3118.1,0.7665]
[1732006313390,0.53870502,3118.2,3118.1,0.7665]
[1732006313589,3.74567502,3118.2,3118.1,0.7665]
[1732006313927,0.53870502,3118.2,3118.1,0.7665]
[1732006314278,0.53870502,3118.2,3118.1,1.3165]
[1732006314795,0.53870502,3118.2,3118.1,4.52358]
[1732006315122,0.53870502,3118.2,3118.1,1.3165]
[1732006315280,0.53870502,3118.2,3118.1,4.52358]
[1732006315989,0.53870502,3118.2,3118.1,1.3165]
[1732006316528,0.53870502,3118.2,3118.1,4.52358]
[1732006316982,0.53870502,3118.2,3118.1,1.3165]
[1732006317327,0.53870502,3118.2,3118.1,0.7665]
[1732006317536,3.74567502,3118.2,3118.1,0.7665]
[1732006317695,0.53870502,3118.2,3118.1,0.7665]
[1732006320847,0.53832205,3118.2,3118.1,0.7665]
[1732006321428,3.74529205,3118.2,3117.9,1.3087]
[1732006321608,0.53832205,3118.1,3117.9,1.3087]
[1732006321799,0.53832205,3118.0,3117.9,1.3087]
[1732006322140,0.53832205,3118.0,3117.6,0.7587]
[1732006322435,0.53832205,3117.9,3117.6,0.7587]
[1732006322741,0.53832205,3117.8,3117.6,0.7587]
[1732006322913,0.53832205,3117.7,3117.6,0.7587]
[1732006323635,0.53824385,3117.7,3117.6,1.3087]
[1732006323837,0.53824385,3117.7,3117.6,4.51629]
[1732006324196,0.53824385,3117.7,3117.6,1.3087]
[1732006324390,0.53824385,3117.7,3117.6,4.51629]
[1732006324622,0.53824385,3117.7,3117.6,5.288679]
[1732006324826,0.29898958,3117.7,3117.6,8.288679]
[1732006325030,3.20658,3118.6,3118.2,0.7849]
[1732006325294,0.53820625,3118.5,3118.2,0.7849]
[1732006325496,0.53820625,3118.4,3118.2,0.7849]
[1732006325800,0.53820625,3118.3,3118.2,0.7849]
[1732006326323,0.53820625,3118.3,3118.2,3.99187]
[1732006326954,0.53820625,3118.3,3118.2,0.7849]
[1732006327245,0.53845545,3118.3,3118.2,0.7849]
[1732006327428,0.53845545,3118.3,3118.2,3.99187]
[1732006328494,0.53845545,3118.3,3118.2,4.941057]
[1732006330671,0.53845545,3118.3,3118.2,4.54187]
[1732006330974,0.53873864,3118.3,3118.2,4.54187]
[1732006331320,0.53873864,3118.3,3118.2,0.55]
[1732006332571,0.53873864,3118.3,3117.9,4.02773]
[1732006332572,0.53873864,3118.3,3118.0,0.55]
[1732006332774,0.53873864,3118.2,3118.0,0.55]
[1732006332981,0.53873864,3118.1,3118.0,3.75717]
[1732006333570,0.53873864,3118.1,3117.8,0.55]
[1732006333775,3.20679,3118.4,3118.0,0.55]
[1732006334004,0.53932581,3118.3,3118.0,0.55]
[1732006334304,0.29962324,3118.2,3118.0,3.75717]
[1732006334491,0.53933412,3118.1,3118.0,3.75717]
[1732006335568,0.53933412,3118.1,3118.0,0.55]
[1732006335760,0.53933412,3118.1,3117.9,3.75724]
[1732006335961,0.53933412,3118.0,3117.9,3.75724]
[1732006337928,0.53933412,3118.0,3117.9,5.348445]
[1732006338129,0.29962324,3118.0,3117.9,5.348445]
[1732006338514,3.99150301,3119.1,3118.5,0.55]
[1732006338861,3.20626,3118.9,3118.5,0.55]
[1732006339013,0.53964809,3119.0,3118.1,0.55]
[1732006339014,0.7841,3118.6,3118.1,0.55]
[1732006339340,0.53964809,3118.5,3118.2,3.20692]
[1732006339539,0.53964809,3118.4,3118.2,3.20692]
[1732006339698,0.53964809,3118.3,3118.2,3.20692]
[1732006340831,0.53964809,3118.3,3118.1,0.55]
[1732006341146,0.53964809,3118.2,3118.1,3.75708]
[1732006341470,0.53964134,3118.2,3118.1,3.75708]
[1732006342843,0.53964134,3118.2,3118.1,0.55]
[1732006345482,0.53964134,3118.2,3118.1,4.213987]
[1732006345790,0.53964134,3118.2,3118.1,5.013587]
[1732006347850,0.53964134,3118.2,3118.1,1.3496]
[1732006348093,0.53964134,3118.2,3118.1,4.55668]
[1732006348451,4.03616,3118.7,3118.2,3.20695]
[1732006348664,0.5395755,3118.6,3118.3,0.55]
[1732006348998,0.5395755,3118.5,3118.3,0.55]
[1732006349300,0.5395755,3118.4,3118.3,0.55]
[1732006349663,0.5395755,3118.4,3118.3,3.75687]
[1732006351962,0.23980996,3118.4,3118.3,3.75687]
[1732006352153,0.53955574,3118.4,3118.3,3.75687]
[1732006352504,0.53955574,3118.4,3118.3,4.588214]
[1732006354057,0.53955574,3118.4,3118.3,5.400814]
[1732006355583,0.53971965,3118.4,3118.3,5.400814]
[1732006355983,0.53971965,3118.4,3118.3,8.400814]
[1732006356154,0.29984425,3118.4,3118.3,8.400814]
[1732006356504,0.02622301,3119.1,3119.0,3.20615]
[1732006356802,0.56600765,3119.1,3119.0,3.20615]
[1732006358588,0.56600765,3119.1,3118.9,0.8313]
[1732006358905,0.53978464,3119.0,3118.9,4.58755]
[1732006359087,0.53978464,3119.0,3118.9,5.366936]
[1732006359411,0.02622301,3119.1,3119.0,3.75615]
[1732006359568,0.56558338,3119.1,3119.0,3.75615]
[1732006361386,0.32586577,3119.1,3119.0,3.75615]
[1732006362271,0.02622301,3119.1,3119.0,3.75615]
[1732006362608,0.02622301,3119.1,3119.0,4.9340896]
[1732006362975,0.32557307,3119.1,3119.0,4.9340896]
[1732006363373,0.02622301,3119.1,3119.0,4.9340896]
[1732006363709,0.32550538,3119.1,3119.0,4.9340896]
[1732006364060,0.02622301,3119.1,3119.0,4.9340896]
[1732006364761,0.32547943,3119.1,3119.0,4.9340896]
[1732006365266,0.02622301,3119.1,3119.0,4.9340896]
[1732006365691,0.02622301,3119.1,3119.0,8.7668896]
[1732006368764,0.02622301,3119.1,3119.0,7.58895]
[1732006369112,0.02622301,3119.1,3119.0,6.20615]
[1732006371113,0.02622301,3119.1,3119.0,6.75615]
[1732006372553,0.32528343,3119.1,3118.9,3.55]
[1732006372698,0.29906042,3119.0,3118.8,0.55]
[1732006372895,0.29906042,3118.9,3118.7,3.2064]
[1732006373127,0.29906042,3118.8,3118.7,3.2064]
[1732006373511,0.29910022,3118.8,3118.7,3.2064]
[1732006374044,0.53836877,3118.8,3118.7,3.2064]
[1732006375257,0.53836877,3118.8,3118.6,3.20656]
[1732006375555,0.8175,3118.9,3118.6,3.20651]
[1732006375556,0.29910022,3118.7,3118.6,3.20651]
[1732006375763,0.53851261,3118.7,3118.6,3.20651]
[1732006375911,0.29910022,3118.7,3118.6,3.20651]
[1732006376255,0.29910022,3118.7,3118.5,3.20666]
[1732006376459,0.29910022,3118.6,3118.5,6.41327]
[1732006376662,0.29910022,3118.6,3118.5,6.75661]
[1732006377971,0.29910022,3118.6,3118.5,6.20666]
[1732006378541,0.53864319,3118.6,3118.5,6.20666]
[1732006379354,0.53864319,3118.6,3118.3,3.20681]
[1732006379559,4.02381,3118.9,3118.3,3.20681]
[1732006379560,0.53864319,3118.5,3118.3,3.20681]
[1732006379743,0.53864319,3118.4,3118.1,0.55]
[1732006380080,0.29910022,3118.3,3118.2,6.75692]
[1732006380285,0.29910022,3118.3,3118.0,3.20713]
[1732006380436,0.816,3118.5,3118.2,3.20697]
[1732006380745,0.539046,3118.4,3118.3,3.20687]
[1732006381548,0.539046,3118.4,3118.3,3.75687]
[1732006383195,0.53905127,3118.4,3118.3,3.75687]
[1732006383886,0.53905127,3118.4,3118.2,0.55]
[1732006384088,0.53905127,3118.3,3118.2,0.55]
[1732006384239,0.53905127,3118.3,3118.1,3.20701]
[1732006384441,0.53905127,3118.2,3118.0,3.0]
[1732006384686,0.8288,3118.3,3117.0,0.09902039]
[1732006384687,0.29947122,3118.1,3117.8,3.20733]
[1732006384990,0.53899046,3118.0,3117.8,3.20733]
[1732006385154,0.29947122,3117.9,3117.8,3.20735]
[1732006385913,0.8288,3118.3,3117.9,3.20728]
[1732006386063,0.5387852,3118.2,3117.9,3.15728]
[1732006386241,0.5387852,3118.1,3117.9,3.15728]
[1732006386444,0.29932517,3118.0,3117.9,3.15728]
[1732006386660,0.8288,3118.3,3117.9,3.15728]
[1732006386865,0.29924487,3118.0,3117.9,3.15728]
[1732006387905,0.53856002,3118.0,3117.9,3.15728]
[1732006388264,0.29924487,3118.0,3117.9,3.15728]
[1732006389207,0.29924487,3118.2,3117.9,3.20722]
[1732006389364,0.29924487,3118.1,3118.0,4.56038]
[1732006389708,0.7515,3118.7,3118.2,3.20689]
[1732006390010,0.53822142,3118.6,3118.2,3.20689]
[1732006390166,0.2990122,3118.5,3118.3,3.20686]
[1732006390367,0.2990122,3118.5,3118.0,1.3532]
[1732006390368,0.53822142,3118.4,3118.0,4.56028]
[1732006390721,0.53822142,3118.3,3118.2,3.20692]
[1732006390918,0.53822142,3118.3,3118.2,3.20697]
[1732006392330,0.2990122,3118.3,3118.2,4.38096789]
[1732006392622,0.29901274,3118.6,3118.4,3.20676]
[1732006392840,0.8135,3118.9,3118.5,3.20659]
[1732006393035,0.53823773,3118.8,3118.3,3.2068]
[1732006393199,0.53823773,3118.7,3118.5,3.20666]
[1732006393399,0.8135,3118.9,3118.6,3.20656]
[1732006393605,0.53827718,3118.8,3118.7,3.20646]
[1732006394104,0.53827718,3118.8,3118.6,3.20656]
[1732006394416,0.53827718,3118.7,3118.6,3.20656]
[1732006394599,0.53827718,3118.7,3118.4,3.2067]
[1732006394804,0.53827718,3118.6,3118.5,3.20666]
[1732006397302,0.53858658,3118.6,3118.5,3.20666]
[1732006399340,0.53858658,3118.6,3118.2,3.2069]
[1732006399634,1.32678658,3118.5,3118.3,3.20686]
[1732006399803,0.53858658,3118.4,3118.3,3.20686]
[1732006400223,0.53858658,3118.4,3118.2,3.20693]
[1732006400401,0.53858658,3118.4,3118.1,3.20707]
[1732006400402,0.7882,3118.5,3118.3,3.20687]
[1732006400595,0.53923705,3118.4,3118.3,3.20687]
[1732006400784,0.23965642,3118.4,3118.3,3.20687]
[1732006401132,0.53912889,3118.4,3118.3,3.20687]
[1732006401301,0.7882,3118.5,3118.3,3.20687]
[1732006401635,0.53930864,3118.4,3118.3,3.20687]
[1732006405170,0.53930864,3118.4,3118.3,4.02117]
[1732006405697,0.53930864,3118.4,3118.3,3.20687]
[1732006408249,3.20636,3118.8,3118.3,3.20687]
[1732006408447,0.23998261,3118.4,3118.3,3.20687]
[1732006408799,1.36576087,3118.4,3118.3,3.20687]
[1732006409302,1.3657617,3118.4,3118.3,3.20687]
[1732006410093,0.5399617,3118.4,3118.3,3.20687]
[1732006412753,0.5399617,3118.4,3118.3,4.02177]
[1732006413264,0.5399617,3118.4,3118.3,4.57177]
[1732006415583,0.5399617,3118.4,3118.3,3.20687]
[1732006418892,0.53942794,3118.4,3118.3,3.20687]
[1732006420730,0.53942794,3118.4,3118.3,4.54787]
[1732006426085,0.53942794,3118.4,3118.3,5.323354]
[1732006428143,0.23998261,3118.4,3118.3,5.323354]
[1732006428651,0.53951832,3118.4,3118.3,5.323354]
[1732006430051,0.5390907,3118.4,3118.3,5.323354]
[1732006430198,0.5390907,3118.4,3118.3,4.54787]
[1732006430901,0.5390907,3118.4,3118.3,7.54787]
[1732006432238,0.53903968,3118.4,3118.3,7.54787]
[1732006433510,0.29946649,3118.4,3118.3,7.54787]
[1732006433848,0.53901454,3118.4,3118.3,7.54787]
[1732006434750,0.53901454,3118.4,3118.3,6.75687]
[1732006435347,0.53901454,3118.4,3118.3,3.75687]
[1732006437904,0.8077,3118.9,3118.4,0.55]
[1732006437905,4.014,3118.9,3118.4,0.55]
[1732006438103,4.014,3118.9,3118.6,0.55]
[1732006438104,0.4014,3118.8,3118.6,0.55]
[1732006438427,0.53899312,3118.7,3118.6,0.55]
[1732006440147,0.53899312,3118.7,3118.4,0.55]
[1732006440299,1.34969312,3118.6,3118.5,3.75666]
[1732006440647,1.34971013,3118.6,3118.5,3.75666]
[1732006440805,1.0502595,3118.6,3118.5,0.55]
[1732006441009,0.8122,3118.5,3117.6,0.7894]
[1732006441238,0.5390103,3118.4,3118.3,3.20678]
[1732006441852,0.5390103,3118.4,3118.1,3.20698]
[1732006442007,0.5390103,3118.3,3118.1,3.20698]
[1732006442213,0.5390103,3118.2,3118.1,3.20698]
[1732006442756,0.2395595,3118.2,3118.1,3.75698]
[1732006442909,0.53890854,3118.2,3118.1,3.75698]
[1732006443104,0.53890854,3118.2,3118.0,0.55]
[1732006443469,0.53890854,3118.1,3118.0,3.20718]
[1732006443622,0.7519,3118.4,3118.0,3.20718]
[1732006443811,0.53872299,3118.1,3118.0,3.20718]
[1732006444009,0.23943244,3118.1,3118.0,3.20718]
[1732006444246,0.53871624,3118.1,3118.0,3.20718]
[1732006444556,0.53871624,3118.1,3118.0,3.75718]
[1732006445950,0.53871624,3118.1,3117.9,0.55]
[1732006446125,0.53871624,3118.0,3117.9,0.55]
[1732006450778,0.53871624,3118.0,3117.9,3.75728]
[1732006451412,0.53871624,3118.0,3117.9,0.55]
[1732006451715,0.53871624,3118.0,3117.9,3.75728]
[1732006455491,0.53871624,3118.0,3117.9,4.56496403]
[1732006455704,0.7863,3118.9,3118.5,0.55]
[1732006455909,0.53850947,3118.8,3118.5,0.55]
[1732006456228,0.2991722,3118.7,3118.5,0.55]
[1732006456524,0.53855235,3118.6,3118.5,0.55]
[1732006457480,0.53855235,3118.6,3118.5,3.75666]
[1732006458919,0.53855235,3118.6,3118.4,3.75674]
[1732006459121,0.53855235,3118.5,3118.4,3.75674]
[1732006459619,0.53856661,3118.5,3118.4,0.55]
[1732006459782,0.53856661,3118.5,3118.3,0.55]
[1732006459989,1.32096661,3118.4,3118.1,3.20706]
[1732006460184,0.53856661,3118.3,3118.1,3.20706]
[1732006460385,0.53856661,3118.2,3118.1,3.20706]
[1732006461031,0.53856661,3118.2,3117.9,3.20718]
[1732006461215,0.53856661,3118.1,3118.0,0.55]
[1732006461384,0.53856661,3118.1,3118.0,3.75716]
[1732006464837,0.53856661,3118.1,3118.0,4.535064]
[1732006466237,0.53878416,3118.1,3118.0,4.535064]
[1732006466820,0.29938975,3118.1,3118.0,4.535064]
[1732006467022,0.53890713,3118.1,3118.0,4.535064]
[1732006468453,0.53890713,3118.1,3118.0,3.75716]
[1732006469555,0.23951738,3118.1,3118.0,3.75716]
[1732006469750,0.53911873,3118.1,3118.0,3.75716]
[1732006472940,0.23951738,3118.1,3118.0,3.75716]
[1732006473162,0.53915065,3118.1,3118.0,3.75716]
[1732006476544,0.53918241,3118.1,3118.0,3.75716]
[1732006478149,0.53939505,3118.1,3118.0,3.75716]
[1732006479732,0.23973002,3118.1,3118.0,3.75716]
[1732006480048,0.539546,3118.1,3118.0,3.75716]
[1732006481356,0.539546,3118.1,3118.0,4.535064]
[1732006481548,0.539546,3118.1,3118.0,3.75716]
[1732006481748,0.539546,3118.1,3118.0,0.55]
[1732006482660,0.539546,3118.1,3117.8,0.55]
[1732006482861,0.539546,3118.0,3117.9,3.75719]
[1732006483052,0.23973002,3118.0,3117.9,3.75719]
[1732006483386,0.53970048,3118.0,3117.9,3.75728]
[1732006487958,0.53970048,3118.0,3117.8,0.55]